fUST/lending_fUST_20260116
["ID","MTS","AMOUNT","RATE_DAILY","PERIOD"]
[402163390,1768554310308,-301.56630542,9.245e-05,2]
[402163391,1768554312887,-22.63369458,9.245e-05,2]
[402163392,1768554312907,-303.92168196,9.5e-05,2]
[402163393,1768554315109,-319.93486371,9.5e-05,2]
[402163394,1768554318474,-158.66195447,9.5e-05,2]
[402163395,1768554320731,-212.95220756,9.5e-05,2]
[402163396,1768554322268,-230.74656221,9.5e-05,2]
[402163397,1768554324403,-368.91071559,9.5e-05,2]
[402163398,1768554330466,-242.4976663,9.5e-05,2]
[402163399,1768554332068,-156.72820523,9.5e-05,2]
[402163400,1768554377547,337.51,8.924e-05,2]
[402163409,1768554456241,333.22,6.013e-05,2]
[402163410,1768554456651,666.43,6.56e-05,2]
[402163411,1768554457037,999.65,7.107e-05,2]
[402163412,1768554457431,1332.87,7.653e-05,2]
[402163413,1768554457841,1666.09,8.2e-05,2]
[402163414,1768554458283,1999.3,8.747e-05,2]
[402163415,1768554459558,-829.28356509,9.293e-05,2]
[402163416,1768554463294,-164.73874826,9.293e-05,2]
[402163417,1768554469311,-236.36606741,9.293e-05,2]
[402163418,1768554471406,-312.34980593,9.293e-05,2]
[402163419,1768554474638,-156.17586165,9.293e-05,2]
[402163420,1768554478420,-155.0,9.293e-05,2]
[402163421,1768554481218,-216.79736269,9.293e-05,2]
[402163422,1768554535769,217.8,6.664e-05,2]
[402163423,1768554536161,435.61,7.27e-05,2]
[402163424,1768554536578,653.41,7.876e-05,2]
[402163425,1768554536989,871.21,8.482e-05,2]
[402163426,1768554552648,-300.0,9.088e-05,2]
[402163427,1768554554699,-196.87699719,9.088e-05,2]
[402163428,1768554557289,-262.36828564,9.088e-05,2]
[402163432,1768554587849,-329.76471717,9.088e-05,2]
[402163433,1768554593767,-157.58003952,9.294e-05,2]
[402163434,1768554596943,-1746.58572307,9.5e-05,2]
[402163435,1768554596978,-183.9495801,9.5e-05,2]
[402163436,1768554597007,-9632.1108398,9.5e-05,2]
[402163437,1768554597065,-300.0,9.689e-05,2]
[402163438,1768554597094,-1306.82,9.694e-05,2]
[402163439,1768554597121,-562.0,0.00010141,2]
[402163440,1768554597148,-1524.62,0.000103,2]
[402163441,1768554597176,-870.71,0.00010906,2]
[402163442,1768554597254,-871.71,0.00010906,2]
[402163443,1768554600020,-185.94444663,0.00011294,2]
[402163444,1768554600055,-1960.22,0.00011511,2]
[402163445,1768554600085,-207.78929945,0.0001191,2]
[402163446,1768554600116,-500.0,0.00011977,2]
[402163447,1768554600148,-309.90721562,0.00011977,2]
[402163448,1768554600183,-551.93691321,0.00011977,2]
[402163449,1768554600214,-500.0,0.00011977,2]
[402163450,1768554600247,-500.0,0.00011977,2]
[402163451,1768554600278,-272.75861122,0.00011977,2]
[402163452,1768554600383,-500.0,0.00011977,2]
[402163453,1768554600419,-500.0,0.00011977,2]
[402163454,1768554600450,-500.0,0.00011977,2]
[402163455,1768554600480,-500.0,0.00011977,2]
[402163456,1768554600510,-500.0,0.00011977,2]
[402163457,1768554600539,-500.0,0.00011977,2]
[402163458,1768554600569,-298.44353842,0.00011977,2]
[402163459,1768554600598,-500.0,0.00011977,2]
[402163460,1768554600626,-788.6838412,0.00011978,2]
[402163461,1768554601303,-22.89702774,0.00011978,2]
[402163462,1768554601324,-825.75524076,0.00011978,2]
[402163463,1768554604712,313.03,3e-05,2]
[402163464,1768554605322,313.03,3e-05,2]
[402163465,1768554605992,313.03,3.1e-05,2]
[402163466,1768554606564,313.03,3.1e-05,2]
[402163467,1768554607167,313.03,3.2e-05,2]
[402163468,1768554607816,313.03,3.2e-05,2]
[402163469,1768554608460,313.03,3.2e-05,2]
[402163470,1768554609137,313.03,3.3e-05,2]
[402163471,1768554610211,313.03,3.3e-05,2]
[402163472,1768554611059,313.03,3.4e-05,2]
[402163473,1768554611588,313.03,3.4e-05,2]
[402163474,1768554612242,313.03,3.4e-05,2]
[402163475,1768554613463,313.03,3.5e-05,2]
[402163476,1768554613709,313.03,3.5e-05,2]
[402163477,1768554614202,313.03,3.6e-05,2]
[402163478,1768554614509,205.8,7.259e-05,2]
[402163479,1768554614850,313.03,3.6e-05,2]
[402163480,1768554614937,308.7,7.864e-05,2]
[402163481,1768554615321,411.6,8.469e-05,2]
[402163482,1768554615426,313.03,3.7e-05,2]
[402163483,1768554615717,514.5,9.074e-05,2]
[402163484,1768554615955,313.03,3.7e-05,2]
[402163485,1768554616132,617.39,9.679e-05,2]
[402163486,1768554616472,313.03,3.7e-05,2]
[402163487,1768554616520,720.29,0.00010284,2]
[402163488,1768554616918,823.19,0.00010889,2]
[402163489,1768554616989,313.03,3.8e-05,2]
[402163490,1768554617618,313.03,3.8e-05,2]
[402163491,1768554618132,313.03,3.9e-05,2]
[402163492,1768554618721,313.03,3.9e-05,2]
[402163493,1768554619303,137.94,3.9e-05,2]
[402163494,1768554619329,175.09,3.9e-05,2]
[402163495,1768554620206,313.03,4e-05,2]
[402163496,1768554620531,313.03,4e-05,2]
[402163497,1768554621061,313.03,4.1e-05,2]
[402163498,1768554622132,313.03,4.1e-05,2]
[402163499,1768554622688,313.03,4.1e-05,2]
[402163500,1768554623372,313.03,4.2e-05,2]
[402163501,1768554623992,313.03,4.2e-05,2]
[402163502,1768554624613,313.03,4.3e-05,2]
[402163503,1768554625137,313.03,4.3e-05,2]
[402163504,1768554626285,313.03,4.3e-05,2]
[402163505,1768554626809,313.03,4.4e-05,2]
[402163506,1768554627202,313.03,4.4e-05,2]
[402163507,1768554627594,313.03,4.5e-05,2]
[402163508,1768554628238,313.03,4.5e-05,2]
[402163509,1768554628874,313.03,4.6e-05,2]
[402163510,1768554629497,313.03,4.6e-05,2]
[402163511,1768554629765,313.03,4.6e-05,2]
[402163512,1768554630267,313.03,4.7e-05,2]
[402163513,1768554630875,313.03,4.7e-05,2]
[402163514,1768554631509,313.03,4.8e-05,2]
[402163518,1768554632127,313.03,4.8e-05,2]
[402163611,1768554633271,313.03,4.8e-05,2]
[402163707,1768554634217,313.03,4.9e-05,2]
[402163744,1768554634551,313.03,4.9e-05,2]
[402163792,1768554635009,313.03,5e-05,2]
[402163982,1768554637127,312.89,3e-05,2]
[402164166,1768554638909,-926.09,0.00011494,2]
[402164168,1768554638918,-2126.66231852,0.00011978,2]
[402164171,1768554638931,-2435.17447835,0.00011978,2]
[402164173,1768554638943,-6980.66110244,0.00011978,2]
[402164178,1768554638980,-964.96468085,0.00011978,2]
[402164180,1768554638992,-538.362,0.00011978,2]
[402164183,1768554639011,-422.28153138,0.00011978,2]
[402164378,1768554640799,-426.31992539,0.00011978,2]
[402164426,1768554641242,-3e-08,0.00011978,2]
[402164664,1768554643624,-1197.93116489,0.00011978,2]
[402165953,1768554689779,248.22,7.359e-05,2]
[402165954,1768554690170,372.33,7.973e-05,2]
[402165955,1768554690553,496.43,8.586e-05,2]
[402165956,1768554726274,155.0,1e-08,2]
[402165957,1768554767198,219.78,7.299e-05,2]
[402165958,1768554767613,329.68,7.907e-05,2]
[402165959,1768554768014,439.57,8.515e-05,2]
[402165960,1768554843633,194.61,6.626e-05,2]
[402165961,1768554844220,291.91,7.178e-05,2]
[402165962,1768554844502,52.93,7.73e-05,2]
[402165963,1768554844523,336.29,7.73e-05,2]
[402165964,1768554845428,486.52,8.283e-05,2]
[402165965,1768554845838,583.83,8.835e-05,2]
[402165966,1768554920872,173.7,6.335e-05,2]
[402165967,1768554921291,260.55,6.863e-05,2]
[402165968,1768554921689,347.4,7.39e-05,2]
[402165969,1768554922098,434.26,7.918e-05,2]
[402165970,1768554922514,521.11,8.446e-05,2]
[402165971,1768554924648,-607.96,8.974e-05,2]
[402165972,1768554924673,-143.31629826,9.502e-05,2]
[402165973,1768554930142,-331.48209646,9.502e-05,2]
[402165974,1768554932354,-170.43281735,9.502e-05,2]
[402165975,1768554996510,214.64,6.877e-05,2]
[402165976,1768554996902,286.18,7.407e-05,2]
[402165977,1768554997288,357.73,7.936e-05,2]
[402165978,1768554997694,429.28,8.465e-05,2]
[402165979,1768555000314,-173.51716562,8.994e-05,2]
[402165980,1768555002454,-317.98085139,8.994e-05,2]
[402165981,1768555050454,-9.32198299,8.994e-05,2]
[402165982,1768555050482,-572.37,9.523e-05,2]
[402165983,1768555050509,-164.69298211,9.663e-05,2]
[402165984,1768555050537,-643.92,0.00010052,2]
[402165985,1768555050563,-530.56817674,0.000104,2]
[402165986,1768555050590,-715.46,0.00010581,2]
[402165987,1768555050618,-300.0,0.00010999,2]
[402165988,1768555062624,-9708.89371632,0.00011,2]
[402165989,1768555070593,218.28,6.844e-05,2]
[402165990,1768555071014,291.04,7.37e-05,2]
[402165991,1768555071431,363.81,7.897e-05,2]
[402165992,1768555071824,436.57,8.423e-05,2]
[402165993,1768555075278,-260.75810347,8.949e-05,2]
[402165994,1768555135275,-248.57189653,8.949e-05,2]
[402165995,1768555135297,-94.11810347,9.476e-05,2]
[402165996,1768555144862,165.09,5.745e-05,2]
[402165997,1768555145267,330.17,6.268e-05,2]
[402165998,1768555145677,495.26,6.79e-05,2]
[402165999,1768555146098,660.34,7.312e-05,2]
[402166000,1768555146610,825.43,7.834e-05,2]
[402166001,1768555147024,990.51,8.357e-05,2]
[402166002,1768555147440,1155.6,8.879e-05,2]
[402166003,1768555151471,-340.27734342,9.401e-05,2]
[402166004,1768555204162,158.95,3e-05,2]
[402166005,1768555204678,158.95,3.2e-05,2]
[402166006,1768555205337,158.95,3.3e-05,2]
[402166007,1768555205842,158.95,3.5e-05,2]
[402166008,1768555206573,158.95,3.7e-05,2]
[402166009,1768555207221,158.95,3.8e-05,2]
[402166010,1768555208020,158.95,4e-05,2]
[402166011,1768555208148,158.95,4.2e-05,2]
[402166012,1768555208728,158.95,4.3e-05,2]
[402166013,1768555209224,158.95,4.5e-05,2]
[402166014,1768555209710,158.95,4.7e-05,2]
[402166015,1768555210375,158.95,4.8e-05,2]
[402166016,1768555211959,158.9,3e-05,2]
[402166017,1768555212650,-328.09031649,9.401e-05,2]
[402166018,1768555219674,-263.18293852,9.401e-05,2]
[402166019,1768555221347,298.18,6.178e-05,2]
[402166020,1768555221860,447.26,6.693e-05,2]
[402166021,1768555222183,596.35,7.208e-05,2]
[402166022,1768555222599,745.44,7.722e-05,2]
[402166023,1768555223024,894.53,8.237e-05,2]
[402166024,1768555223562,1043.61,8.752e-05,2]
[402166025,1768555225781,-210.47004235,9.267e-05,2]
[402166026,1768555229429,-301.85311576,9.267e-05,2]
[402166027,1768555232472,-167.06358688,9.267e-05,2]
[402166028,1768555234446,-436.39762998,9.267e-05,2]
[402166029,1768555297348,154.85,5.992e-05,2]
[402166030,1768555297743,309.7,6.536e-05,2]
[402166031,1768555298196,464.55,7.081e-05,2]
[402166032,1768555298610,619.39,7.626e-05,2]
[402166033,1768555299034,774.24,8.17e-05,2]
[402166034,1768555299432,929.09,8.715e-05,2]
[402166035,1768555315290,-256.21177549,9.26e-05,2]
[402166036,1768555317512,-294.69489609,9.26e-05,2]
[402166037,1768555322467,-179.17516074,9.26e-05,2]
[402166038,1768555329169,-179.01016908,9.26e-05,2]
[402166039,1768555331933,-174.8479986,9.26e-05,2]
[402166040,1768555331956,-13.81587046,9.334e-05,2]
[402166043,1768555374527,283.65,6.837e-05,2]
[402166044,1768555374938,425.48,7.407e-05,2]
[402166045,1768555375505,567.31,7.977e-05,2]
[402166046,1768555375909,709.13,8.547e-05,2]
[402166047,1768555376375,-171.57034512,9.117e-05,2]
[402166048,1768555378300,-297.41767298,9.117e-05,2]
[402166049,1768555381119,-358.49768086,9.117e-05,2]
[402166050,1768555391152,-23.47430104,9.117e-05,2]
[402166051,1768555391174,-132.7173047,9.334e-05,2]
[402166052,1768555455678,281.35,6.833e-05,2]
[402166053,1768555456239,422.02,7.403e-05,2]
[402166054,1768555456633,33.88,7.972e-05,2]
[402166055,1768555456654,528.81,7.972e-05,2]
[402166056,1768555457063,703.37,8.542e-05,2]
[402166057,1768555463810,-241.89622822,9.111e-05,2]
[402166058,1768555466601,-164.54999856,9.111e-05,2]
[402166059,1768555469497,-300.0,9.111e-05,2]
[402166060,1768555533849,272.57,6.77e-05,2]
[402166061,1768555534286,408.86,7.334e-05,2]
[402166062,1768555534657,545.14,7.898e-05,2]
[402166063,1768555535050,681.43,8.463e-05,2]
[402166065,1768555538000,-408.47977115,9.027e-05,2]
[402166066,1768555540139,-313.20075125,9.027e-05,2]
[402166070,1768555570244,-96.0294776,9.027e-05,2]
[402166071,1768555570277,-161.85024419,9.181e-05,2]
[402166072,1768555570299,-17.92267958,9.401e-05,2]
[402166073,1768555611506,262.41,6.244e-05,2]
[402166074,1768555611920,393.62,6.764e-05,2]
[402166075,1768555612318,524.82,7.285e-05,2]
[402166076,1768555612705,656.03,7.805e-05,2]
[402166077,1768555613142,787.23,8.325e-05,2]
[402166078,1768555613560,918.44,8.845e-05,2]
[402166088,1768555687189,154.12,5.908e-05,2]
[402166091,1768555687584,308.23,6.445e-05,2]
[402166092,1768555687992,462.35,6.983e-05,2]
[402166095,1768555688421,616.46,7.52e-05,2]
[402166096,1768555688860,770.58,8.057e-05,2]
[402166097,1768555689257,924.69,8.594e-05,2]
[402166098,1768555705324,-372.97595322,9.131e-05,2]
[402166101,1768555708068,-173.23684724,9.131e-05,2]
[402166102,1768555709592,-156.33613094,9.131e-05,2]
[402166108,1768555764240,189.05,6.295e-05,2]
[402166109,1768555764721,378.1,6.867e-05,2]
[402166110,1768555765047,567.15,7.439e-05,2]
[402166111,1768555765440,756.2,8.012e-05,2]
[402166112,1768555765837,945.26,8.584e-05,2]
[402166118,1768555780268,-387.71886205,9.156e-05,2]
[402166119,1768555782851,-217.43562675,9.156e-05,2]
[402166120,1768555787196,-443.83135237,9.156e-05,2]
[402166121,1768555810800,-85.32415883,9.156e-05,2]
[402166122,1768555810821,-271.21151674,9.156e-05,2]
[402166123,1768555814039,-190.4260646,9.156e-05,2]
[402166147,1768555831728,-86.36241866,9.156e-05,2]
[402166148,1768555831738,-1323.36,9.728e-05,2]
[402166149,1768555831747,-186.0,9.83e-05,2]
[402166150,1768555831757,-1200.0,9.83e-05,2]
[402166151,1768555831766,-300.0,9.83e-05,2]
[402166152,1768555831775,-1890.98570596,9.831e-05,2]
[402166153,1768555831786,-718.8628463,9.831e-05,2]
[402166155,1768555831798,-534.64380724,9.831e-05,2]
[402166156,1768555831833,-10934.9812472,9.831e-05,2]
[402166208,1768555840263,-3e-08,9.831e-05,2]
[402166209,1768555840275,-364.81928846,9.831e-05,2]
[402166210,1768555840301,-9444.42018499,9.831e-05,2]
[402166211,1768555841496,292.08,7.428e-05,2]
[402166212,1768555841792,93.19,8.047e-05,2]
[402166213,1768555841815,344.92,8.047e-05,2]
[402166214,1768555842188,584.15,8.666e-05,2]
[402166222,1768555842770,-477.26040614,9.285e-05,2]
[402166224,1768555842908,-252.92959386,9.285e-05,2]
[402166225,1768555842918,-1092.25716885,9.831e-05,2]
[402166226,1768555842929,-38277.87843337,9.831e-05,2]
[402166227,1768555842939,-776.0690323,0.000104,2]
[402166229,1768555842948,-500.0000002,0.0001095,2]
[402166231,1768555842958,-178.8668351,0.00010959,2]
[402166233,1768555842967,-533.16039316,0.00010998,2]
[402166234,1768555842978,-540.90054673,0.00010999,2]
[402166235,1768555842988,-29732.75658242,0.00011,2]
[402166236,1768555842999,-190.98328815,0.00011181,2]
[402166237,1768555843008,-7855.9782018,0.00011372,2]
[402166238,1768555843018,-250.0,0.0001152,2]
[402166239,1768555843028,-151.0,0.00011971,2]
[402166240,1768555843038,-151.0,0.00011971,2]
[402166241,1768555843047,-151.0,0.00011971,2]
[402166242,1768555843065,-159.24679693,0.00011971,2]
[402166243,1768555843077,-283.35354237,0.00011977,2]
[402166244,1768555843087,-21697.26001147,0.00011978,2]
[402166278,1768556066027,400.0,0.000154,120]
[402166281,1768556340405,419.7,0.000154,120]
[402166282,1768556366070,-249.96,0.00010003,2]
[402166283,1768556366098,-154.79357355,0.00010131,2]
[402166284,1768556366131,-688.36233434,0.000104,2]
[402166285,1768556366161,-300.0,0.00010537,2]
[402166286,1768556366190,-300.0,0.00010537,2]
[402166287,1768556366223,-300.0,0.00010537,2]
[402166288,1768556366253,-300.0,0.00010537,2]
[402166289,1768556366303,-300.0,0.00010537,2]
[402166290,1768556377352,-2753.24227633,0.00010538,2]
[402166291,1768556587367,-157.92,9.167e-05,2]
[402166292,1768556587396,-151.69770208,9.584e-05,2]
[402166293,1768556587426,-315.85,0.0001,2]
[402166294,1768556587514,-8749.07459584,0.00010538,2]
[402166295,1768556593377,-943.06327873,0.00010538,2]
[402166296,1768556593407,-3418.3451977,0.00010538,2]
[402166297,1768556593458,-1277.19304714,0.00010538,2]
[402166298,1768556633942,161.0,4.2e-07,2]
[402166299,1768556634952,161.0,4.2e-07,2]
[402166300,1768556635990,161.0,4.2e-07,2]
[402166301,1768556637162,161.0,4.2e-07,2]
[402166302,1768556638143,161.0,4.2e-07,2]
[402166303,1768556639196,161.0,4.2e-07,2]
[402166304,1768556640227,161.0,4.2e-07,2]
[402166305,1768556641257,161.0,4.2e-07,2]
[402166335,1768556875429,-607.08730474,9.155e-05,2]
[402166336,1768556950792,-212.63828564,9.18e-05,2]
[402166337,1768556952335,-315.8052525,9.18e-05,2]
[402166340,1768556983195,-125.75646186,9.18e-05,2]
[402166341,1768556983223,-155.73292219,9.596e-05,2]
[402166342,1768556983251,-1308.41,0.00010014,2]
[402166343,1768556983381,-5572.72184785,0.00010538,2]
[402166344,1768556986146,-10000.01,0.00010538,2]
[402166345,1768556992425,-1871.77752001,0.00010538,2]
[402166346,1768556992452,-568.0,0.00010538,2]
[402166347,1768556992479,-2144.0317981,0.00010566,2]
[402166348,1768556992507,-300.0,0.00010748,2]
[402166349,1768556992587,-232.39136378,0.00010849,2]
[402166350,1768557003856,151.59,5e-05,2]
[402166351,1768557004615,151.59,5e-05,2]
[402166352,1768557005160,151.59,5e-05,2]
[402166353,1768557005807,151.59,5e-05,2]
[402166354,1768557006467,151.59,5e-05,2]
[402166355,1768557007197,151.59,5.1e-05,2]
[402166356,1768557008050,151.59,5.1e-05,2]
[402166357,1768557008320,151.59,5.1e-05,2]
[402166358,1768557009053,151.59,5.1e-05,2]
[402166359,1768557009503,151.59,5.1e-05,2]
[402166360,1768557010126,151.59,5.1e-05,2]
[402166361,1768557010806,151.59,5.1e-05,2]
[402166362,1768557011489,151.59,5.1e-05,2]
[402166363,1768557012059,151.59,5.1e-05,2]
[402166364,1768557012468,151.59,5.1e-05,2]
[402166365,1768557013001,151.59,5.2e-05,2]
[402166366,1768557013411,151.59,5.2e-05,2]
[402166367,1768557014067,151.59,5.2e-05,2]
[402166368,1768557014765,151.59,5.2e-05,2]
[402166369,1768557015259,151.59,5.2e-05,2]
[402166370,1768557015755,151.59,5.2e-05,2]
[402166371,1768557016418,151.59,5.2e-05,2]
[402166372,1768557017049,151.59,5.2e-05,2]
[402166374,1768557017450,151.59,5.2e-05,2]
[402166375,1768557018784,151.59,5.2e-05,2]
[402166376,1768557018994,151.59,5.3e-05,2]
[402166377,1768557019077,151.59,5.3e-05,2]
[402166378,1768557019570,151.59,5.3e-05,2]
[402166379,1768557020224,151.59,5.3e-05,2]
[402166380,1768557020741,151.59,5.3e-05,2]
[402166381,1768557021370,151.59,5.3e-05,2]
[402166382,1768557021440,-209.96254096,9.153e-05,2]
[402166383,1768557022051,151.59,5.3e-05,2]
[402166384,1768557022700,151.59,5.3e-05,2]
[402166385,1768557022974,-245.37981066,9.153e-05,2]
[402166386,1768557023357,151.59,5.3e-05,2]
[402166387,1768557023889,151.59,5.3e-05,2]
[402166388,1768557024526,151.59,5.4e-05,2]
[402166389,1768557025171,151.59,5.4e-05,2]
[402166390,1768557025796,151.59,5.4e-05,2]
[402166391,1768557026352,151.59,5.4e-05,2]
[402166392,1768557027010,151.59,5.4e-05,2]
[402166393,1768557027568,151.59,5.4e-05,2]
[402166394,1768557028105,151.59,5.4e-05,2]
[402166395,1768557028530,151.59,5.4e-05,2]
[402166396,1768557029279,151.59,5.4e-05,2]
[402166397,1768557029685,151.59,5.4e-05,2]
[402166398,1768557030202,151.59,5.5e-05,2]
[402166399,1768557030846,151.59,5.5e-05,2]
[402166400,1768557031247,151.59,5.5e-05,2]
[402166420,1768557031895,151.59,5.5e-05,2]
[402166421,1768557031910,-170.92764838,9.153e-05,2]
[402166422,1768557031921,-132.48725704,9.985e-05,2]
[402166423,1768557031945,-1120.05274296,9.985e-05,2]
[402166424,1768557031956,-1878.8,0.00010817,2]
[402166425,1768557031967,-572.0,0.00010849,2]
[402166426,1768557031982,-978.2926795,0.00011008,2]
[402166427,1768557031993,-183.76484818,0.00011596,2]
[402166428,1768557032004,-2505.07,0.00011649,2]
[402166429,1768557032017,-1057.0,0.00012024,2]
[402166430,1768557032028,-1116.20723847,0.00012025,2]
[402166431,1768557032409,151.59,5.5e-05,2]
[402166468,1768557037954,-1660.73242763,0.00012025,2]
[402166470,1768557037965,-300.0,0.00012063,2]
[402166471,1768557037976,-300.0,0.00012063,2]
[402166473,1768557037987,-171.0,0.00012063,2]
[402166474,1768557037998,-18793.78391879,0.00012064,2]
[402166475,1768557038009,-4177.3764581,0.00012064,2]
[402166477,1768557038020,-300.0,0.00012303,2]
[402166478,1768557038032,-300.0,0.00012303,2]
[402166479,1768557038044,-300.0,0.00012303,2]
[402166480,1768557038056,-300.0,0.00012303,2]
[402166481,1768557038068,-300.0,0.00012303,2]
[402166482,1768557038079,-300.0,0.00012303,2]
[402166483,1768557038091,-300.0,0.00012303,2]
[402166484,1768557038103,-300.0,0.00012303,2]
[402166485,1768557038115,-300.0,0.00012303,2]
[402166486,1768557038126,-619.6189924,0.00012357,2]
[402166487,1768557038137,-932.098678,0.00012405,2]
[402166488,1768557038149,-3131.34,0.00012481,2]
[402166489,1768557038160,-1550.34994772,0.000129,2]
[402166490,1768557038171,-313.00001445,0.00012928,2]
[402166491,1768557038183,-500.0,0.00012928,2]
[402166492,1768557038194,-534.50616347,0.00012928,2]
[402166493,1768557038205,-141792.76360021,0.00012929,2]
[402166550,1768557042998,-25167.15870326,0.00012929,2]
[402166551,1768557043011,-26323.64114281,0.00012929,2]
[402166555,1768557046159,-376.79476554,0.00012929,2]
[402166556,1768557046214,-10572.57474488,0.00012929,2]
[402166557,1768557046223,-203.1622595,0.00012968,2]
[402166558,1768557046234,-578.48810149,0.00013068,2]
[402166559,1768557046243,-2313.95240596,0.00013068,2]
[402166560,1768557046252,-5206.39291341,0.00013068,2]
[402166561,1768557046261,-199.81913383,0.00013122,2]
[402166562,1768557046272,-200.37737228,0.00013122,2]
[402166563,1768557046282,-500.0,0.00013122,2]
[402166564,1768557046291,-500.0,0.00013122,2]
[402166565,1768557046300,-153.04565306,0.00013122,2]
[402166566,1768557046309,-290.15266564,0.00013122,2]
[402166567,1768557046319,-500.0,0.00013122,2]
[402166568,1768557046331,-500.0,0.00013122,2]
[402166569,1768557046341,-500.0,0.00013122,2]
[402166570,1768557046350,-869.0,0.00013122,2]
[402166571,1768557046361,-500.0,0.00013122,2]
[402166572,1768557046371,-500.0,0.00013122,2]
[402166573,1768557046381,-500.0,0.00013122,2]
[402166574,1768557046390,-436.0,0.00013122,2]
[402166575,1768557046399,-600.0,0.00013259,2]
[402166576,1768557046408,-500.0,0.00013259,2]
[402166577,1768557046417,-500.0,0.00013259,2]
[402166578,1768557046427,-500.0,0.00013259,2]
[402166579,1768557046437,-500.0,0.00013259,2]
[402166580,1768557046447,-869.0,0.00013259,2]
[402166581,1768557046457,-500.0,0.00013259,2]
[402166582,1768557046467,-500.0,0.00013259,2]
[402166583,1768557046477,-500.0,0.00013259,2]
[402166584,1768557046486,-436.0,0.00013259,2]
[402166585,1768557046495,-170.189386,0.00013266,2]
[402166586,1768557046504,-506.52988688,0.00013273,2]
[402166587,1768557046513,-500.0,0.00013273,2]
[402166588,1768557046523,-504.63987932,0.00013273,2]
[402166589,1768557046533,-500.0,0.00013273,2]
[402166590,1768557046542,-500.0,0.00013273,2]
[402166591,1768557046552,-500.0,0.00013273,2]
[402166592,1768557046562,-500.0,0.00013273,2]
[402166593,1768557046572,-500.87203547,0.00013273,2]
[402166594,1768557046582,-500.0,0.00013273,2]
[402166595,1768557046591,-500.18311244,0.00013273,2]
[402166596,1768557046602,-501.08403371,0.00013273,2]
[402166597,1768557046613,-500.0,0.00013273,2]
[402166598,1768557046622,-500.9653681,0.00013273,2]
[402166599,1768557046631,-3757.61,0.00013313,2]
[402166600,1768557046640,-500.0,0.00013396,2]
[402166601,1768557046649,-500.0,0.00013396,2]
[402166602,1768557046658,-500.0,0.00013396,2]
[402166603,1768557046667,-500.0,0.00013396,2]
[402166604,1768557046676,-869.0,0.00013396,2]
[402166605,1768557046685,-371.65237339,0.00013396,2]
[402166606,1768557046694,-500.0,0.00013396,2]
[402166607,1768557046703,-216.84280402,0.00013396,2]
[402166608,1768557046714,-436.0,0.00013396,2]
[402166609,1768557046724,-150.44,0.00013433,2]
[402166610,1768557046733,-300.0,0.00013533,2]
[402166611,1768557046742,-500.0,0.00013533,2]
[402166612,1768557046751,-500.0,0.00013533,2]
[402166613,1768557046760,-500.0,0.00013533,2]
[402166614,1768557046769,-869.0,0.00013533,2]
[402166615,1768557046778,-483.44353487,0.00013533,2]
[402166616,1768557046788,-436.0,0.00013533,2]
[402166617,1768557046797,-179.19406929,0.00013533,2]
[402166618,1768557046806,-500.0,0.00013547,2]
[402166619,1768557046814,-211.79677418,0.00013596,2]
[402166620,1768557046825,-351.06,0.00013598,2]
[402166621,1768557046834,-500.0,0.0001367,2]
[402166622,1768557046844,-500.0,0.0001367,2]
[402166623,1768557046853,-500.0,0.0001367,2]